fUST/lending_fUST_20260611
["ID","MTS","AMOUNT","RATE_DAILY","PERIOD"]
[424755128,1781127047000,-427.05953507,0.00022465,2]
[424755109,1781127047000,-542.36765566,0.00022465,2]
[424755113,1781127047000,-216.87,0.00022465,2]
[424755112,1781127047000,-441.67,0.00022465,2]
[424755110,1781127047000,-500.0,0.00022465,2]
[424755111,1781127047000,-500.0,0.00022465,2]
[424755107,1781127047000,-250.546451,0.00022442,14]
[424755108,1781127047000,-167.36,0.00022465,2]
[424755114,1781127047000,-514.61,0.00022465,2]
[424755123,1781127047000,-500.0,0.00022465,2]
[424755126,1781127047000,-424.52,0.00022465,2]
[424755124,1781127047000,-500.0,0.00022465,2]
[424755120,1781127047000,-500.0,0.00022465,2]
[424755121,1781127047000,-156.46,0.00022465,2]
[424755127,1781127047000,-500.0,0.00022465,2]
[424755125,1781127047000,-500.0,0.00022465,2]
[424755118,1781127047000,-500.0,0.00022465,2]
[424755119,1781127047000,-500.0,0.00022465,2]
[424755117,1781127047000,-247.10200893,0.00022465,2]
[424755116,1781127047000,-258.06,0.00022465,2]
[424755115,1781127047000,-500.0,0.00022465,2]
[424755122,1781127047000,-379.68,0.00022465,2]
[424755204,1781127048000,-151.0,0.00022821,2]
[424755201,1781127048000,-500.0,0.00022739,2]
[424755197,1781127048000,-500.0,0.00022739,2]
[424755202,1781127048000,-1735.00270558,0.00022772,2]
[424755200,1781127048000,-500.0,0.00022739,2]
[424755196,1781127048000,-500.0,0.00022739,2]
[424755198,1781127048000,-3348.17,0.00022739,2]
[424755203,1781127048000,-2397.20826166,0.00022772,2]
[424755193,1781127048000,-281.11,0.00022739,2]
[424755192,1781127048000,-500.0,0.00022739,2]
[424755194,1781127048000,-500.0,0.00022739,2]
[424755199,1781127048000,-500.0,0.00022739,2]
[424755205,1781127048000,-160.0,0.00022821,14]
[424755219,1781127048000,-500.0,0.00023013,2]
[424755206,1781127048000,-280.641333,0.00022821,14]
[424755208,1781127048000,-9045.613469,0.000229,2]
[424755212,1781127048000,-500.0,0.00023013,2]
[424755209,1781127048000,-860.967326,0.00022985,2]
[424755213,1781127048000,-500.0,0.00023013,2]
[424755214,1781127048000,-500.0,0.00023013,2]
[424755210,1781127048000,-202.27783418,0.00023001,2]
[424755211,1781127048000,-433.39,0.00023013,2]
[424755215,1781127048000,-156.97,0.00023013,2]
[424755217,1781127048000,-500.0,0.00023013,2]
[424755218,1781127048000,-500.0,0.00023013,2]
[424755216,1781127048000,-500.0,0.00023013,2]
[424755220,1781127048000,-500.0,0.00023013,2]
[424755195,1781127048000,-529.31,0.00022739,2]
[424755207,1781127048000,-401.282666,0.00022821,14]
[424755191,1781127048000,-500.0,0.00022739,2]
[424755178,1781127048000,-500.0,0.00022739,2]
[424755188,1781127048000,-500.0,0.00022739,2]
[424755222,1781127048000,-260.95242672,0.00023013,2]
[424755161,1781127048000,-166.98,0.00022465,2]
[424755163,1781127048000,-500.0,0.00022465,2]
[424755164,1781127048000,-331.6,0.00022466,2]
[424755165,1781127048000,-822.0,0.00022533,2]
[424755162,1781127048000,-500.0,0.00022465,2]
[424755166,1781127048000,-151.0,0.000226,8]
[424755168,1781127048000,-500.0,0.00022739,2]
[424755169,1781127048000,-500.0,0.00022739,2]
[424755167,1781127048000,-500.0,0.00022739,2]
[424755171,1781127048000,-500.0,0.00022739,2]
[424755170,1781127048000,-500.0,0.00022739,2]
[424755172,1781127048000,-541.05617401,0.00022739,2]
[424755190,1781127048000,-500.0,0.00022739,2]
[424755179,1781127048000,-500.0,0.00022739,2]
[424755177,1781127048000,-500.0,0.00022739,2]
[424755180,1781127048000,-500.0,0.00022739,2]
[424755176,1781127048000,-358.64,0.00022739,2]
[424755173,1781127048000,-500.0,0.00022739,2]
[424755175,1781127048000,-500.0,0.00022739,2]
[424755182,1781127048000,-500.0,0.00022739,2]
[424755181,1781127048000,-500.0,0.00022739,2]
[424755184,1781127048000,-537.5,0.00022739,2]
[424755183,1781127048000,-500.0,0.00022739,2]
[424755185,1781127048000,-279.48135627,0.00022739,2]
[424755186,1781127048000,-513.67,0.00022739,2]
[424755189,1781127048000,-500.0,0.00022739,2]
[424755187,1781127048000,-500.0,0.00022739,2]
[424755174,1781127048000,-182.46377433,0.00022739,2]
[424755223,1781127048000,-500.0,0.00023013,2]
[424755221,1781127048000,-500.0,0.00023013,2]
[424755228,1781127048000,-421.66115596,0.00023013,2]
[424755258,1781127048000,-500.0,0.00023287,2]
[424755259,1781127048000,-500.0,0.00023287,2]
[424755261,1781127048000,-537.5,0.00023287,2]
[424755265,1781127048000,-500.0,0.00023287,2]
[424755266,1781127048000,-500.0,0.00023287,2]
[424755260,1781127048000,-403.6,0.00023287,2]
[424755263,1781127048000,-500.0,0.00023287,2]
[424755264,1781127048000,-311.23,0.00023287,2]
[424755262,1781127048000,-513.67,0.00023287,2]
[424755267,1781127048000,-500.0,0.00023287,2]
[424755268,1781127048000,-529.31,0.00023287,2]
[424755270,1781127048000,-500.0,0.00023287,2]
[424755271,1781127048000,-3348.17,0.00023287,2]
[424755257,1781127048000,-500.0,0.00023287,2]
[424755273,1781127048000,-500.0,0.00023287,2]
[424755275,1781127048000,-500.0,0.00023561,2]
[424755274,1781127048000,-469.3487222,0.00023561,2]
[424755277,1781127048000,-500.0,0.00023561,2]
[424755276,1781127048000,-500.0,0.00023561,2]
[424755281,1781127048000,-537.5,0.00023561,2]
[424755278,1781127048000,-500.0,0.00023561,2]
[424755280,1781127048000,-500.0,0.00023561,2]
[424755279,1781127048000,-614.05735194,0.00023561,2]
[424755283,1781127048000,-500.0,0.00023561,2]
[424755286,1781127048000,-500.0,0.00023561,2]
[424755284,1781127048000,-500.0,0.00023561,2]
[424755285,1781127048000,-500.0,0.00023561,2]
[424755282,1781127048000,-513.67,0.00023561,2]
[424755269,1781127048000,-179.02,0.00023287,2]
[424755256,1781127048000,-500.0,0.00023287,2]
[424755272,1781127048000,-500.0,0.00023287,2]
[424755253,1781127048000,-500.0,0.00023287,2]
[424755254,1781127048000,-500.0,0.00023287,2]
[424755226,1781127048000,-513.67,0.00023013,2]
[424755227,1781127048000,-500.0,0.00023013,2]
[424755224,1781127048000,-500.0,0.00023013,2]
[424755229,1781127048000,-500.0,0.00023013,2]
[424755231,1781127048000,-425.69,0.00023013,2]
[424755233,1781127048000,-500.0,0.00023013,2]
[424755232,1781127048000,-500.0,0.00023013,2]
[424755234,1781127048000,-529.31,0.00023013,2]
[424755225,1781127048000,-537.5,0.00023013,2]
[424755236,1781127048000,-500.0,0.00023013,2]
[424755235,1781127048000,-500.0,0.00023013,2]
[424755238,1781127048000,-571.28,0.00023013,2]
[424755237,1781127048000,-3348.17,0.00023013,2]
[424755239,1781127048000,-500.0,0.00023013,2]
[424755230,1781127048000,-500.0,0.00023013,2]
[424755255,1781127048000,-203.72,0.00023287,2]
[424755240,1781127048000,-500.0,0.00023013,2]
[424755251,1781127048000,-414.65,0.00023287,2]
[424755248,1781127048000,-646.13287297,0.00023165,2]
[424755250,1781127048000,-297.42,0.00023287,2]
[424755249,1781127048000,-510.48265369,0.00023165,2]
[424755245,1781127048000,-5000.0,0.00023063,2]
[424755252,1781127048000,-500.0,0.00023287,2]
[424755243,1781127048000,-9704.93262028,0.00023063,2]
[424755247,1781127048000,-5000.0,0.00023063,2]
[424755244,1781127048000,-5000.0,0.00023063,2]
[424755241,1781127048000,-196.0,0.00023014,7]
[424755242,1781127048000,-359.820458,0.00023049,14]
[424755246,1781127048000,-5000.0,0.00023063,2]
[424755328,1781127049000,-500.0,0.00024109,2]
[424755331,1781127049000,-529.31,0.00024109,2]
[424755327,1781127049000,-500.0,0.00024109,2]
[424755329,1781127049000,-500.0,0.00024109,2]
[424755330,1781127049000,-500.0,0.00024109,2]
[424755314,1781127049000,-2259.403367,0.000239,2]
[424755323,1781127049000,-500.0,0.00024109,2]
[424755325,1781127049000,-537.5,0.00024109,2]
[424755324,1781127049000,-500.0,0.00024109,2]
[424755322,1781127049000,-500.0,0.00024109,2]
[424755321,1781127049000,-500.0,0.00024109,2]
[424755326,1781127049000,-513.67,0.00024109,2]
[424755333,1781127049000,-3348.17,0.00024109,2]
[424755347,1781127049000,-513.67,0.00024383,2]
[424755334,1781127049000,-474.78,0.00024109,2]
[424755335,1781127049000,-500.0,0.00024109,2]
[424755342,1781127049000,-500.0,0.00024383,2]
[424755339,1781127049000,-199.0,0.00024164,7]
[424755341,1781127049000,-500.0,0.00024383,2]
[424755338,1781127049000,-236.938648,0.00024134,14]
[424755336,1781127049000,-151.0,0.0002411,6]
[424755340,1781127049000,-152.0,0.00024169,30]
[424755337,1781127049000,-10000.0,0.0002411,2]
[424755343,1781127049000,-500.0,0.00024383,2]
[424755345,1781127049000,-500.0,0.00024383,2]
[424755344,1781127049000,-500.0,0.00024383,2]
[424755346,1781127049000,-537.5,0.00024383,2]
[424755319,1781127049000,-150.0,0.00024041,2]
[424755332,1781127049000,-500.0,0.00024109,2]
[424755317,1781127049000,-150.0,0.00024041,2]
[424755288,1781127049000,-500.0,0.00023561,2]
[424755320,1781127049000,-500.0,0.00024109,2]
[424755348,1781127049000,-500.0,0.00024383,2]
[424755287,1781127049000,-529.31,0.00023561,2]
[424755291,1781127049000,-500.0,0.00023561,2]
[424755289,1781127049000,-3348.17,0.00023561,2]
[424755290,1781127049000,-500.0,0.00023561,2]
[424755293,1781127049000,-2208.0,0.00023615,2]
[424755292,1781127049000,-369.491806,0.00023564,14]
[424755295,1781127049000,-444.0,0.00023615,2]
[424755294,1781127049000,-186.0,0.00023615,2]
[424755296,1781127049000,-500.0,0.00023835,2]
[424755297,1781127049000,-500.0,0.00023835,2]
[424755298,1781127049000,-500.0,0.00023835,2]
[424755300,1781127049000,-500.0,0.00023835,2]
[424755305,1781127049000,-500.0,0.00023835,2]
[424755307,1781127049000,-529.31,0.00023835,2]
[424755304,1781127049000,-500.0,0.00023835,2]
[424755306,1781127049000,-500.0,0.00023835,2]
[424755302,1781127049000,-513.67,0.00023835,2]
[424755299,1781127049000,-500.0,0.00023835,2]
[424755301,1781127049000,-537.5,0.00023835,2]
[424755303,1781127049000,-500.0,0.00023835,2]
[424755308,1781127049000,-500.0,0.00023835,2]
[424755311,1781127049000,-500.0,0.00023835,2]
[424755310,1781127049000,-500.0,0.00023835,2]
[424755312,1781127049000,-160.0,0.0002386,2]
[424755309,1781127049000,-3348.17,0.00023835,2]
[424755313,1781127049000,-276.898993,0.00023895,14]
[424755316,1781127049000,-336.769599,0.00023962,14]
[424755315,1781127049000,-660.27478284,0.00023945,2]
[424755318,1781127049000,-150.0,0.00024041,2]
[424755350,1781127049000,-500.0,0.00024383,2]
[424755367,1781127049000,-500.0,0.00024657,2]
[424755353,1781127049000,-500.0,0.00024383,2]
[424755387,1781127049000,-537.5,0.00024931,2]
[424755384,1781127049000,-500.0,0.00024931,2]
[424755388,1781127049000,-513.67,0.00024931,2]
[424755390,1781127049000,-500.0,0.00024931,2]
[424755391,1781127049000,-500.0,0.00024931,2]
[424755394,1781127049000,-500.0,0.00024931,2]
[424755393,1781127049000,-529.31,0.00024931,2]
[424755389,1781127049000,-500.0,0.00024931,2]
[424755395,1781127049000,-3348.17,0.00024931,2]
[424755392,1781127049000,-500.0,0.00024931,2]
[424755396,1781127049000,-606.95,0.00024931,2]
[424755398,1781127049000,-278.72411,0.00024935,14]
[424755401,1781127049000,-167.633005,0.00024935,14]
[424755385,1781127049000,-500.0,0.00024931,2]
[424755397,1781127049000,-314.191504,0.00024935,14]
[424755402,1781127049000,-204.805361,0.00024935,14]
[424755405,1781127049000,-241.294606,0.00024935,14]
[424755404,1781127049000,-190.014661,0.00024935,14]
[424755408,1781127049000,-188.463676,0.00025184,14]
[424755403,1781127049000,-188.463677,0.00024935,14]
[424755407,1781127049000,-826.74186132,0.00025035,2]
[424755406,1781127049000,-263.265164,0.00024935,14]
[424755409,1781127049000,-500.0,0.00025205,2]
[424755412,1781127049000,-500.0,0.00025205,2]
[424755410,1781127049000,-500.0,0.00025205,2]
[424755411,1781127049000,-500.0,0.00025205,2]
[424755413,1781127049000,-360.93944284,0.00025205,2]
[424755355,1781127049000,-500.0,0.00024383,2]
[424755399,1781127049000,-183.256334,0.00024935,14]
[424755386,1781127049000,-500.0,0.00024931,2]
[424755400,1781127049000,-161.540294,0.00024935,14]
[424755381,1781127049000,-212.54,0.000249,2]
[424755349,1781127049000,-500.0,0.00024383,2]
[424755383,1781127049000,-500.0,0.00024931,2]
[424755352,1781127049000,-529.31,0.00024383,2]
[424755351,1781127049000,-500.0,0.00024383,2]
[424755354,1781127049000,-3348.17,0.00024383,2]
[424755356,1781127049000,-1000.0,0.00024436,10]
[424755360,1781127049000,-500.0,0.00024657,2]
[424755359,1781127049000,-500.0,0.00024657,2]
[424755358,1781127049000,-500.0,0.00024657,2]
[424755364,1781127049000,-500.0,0.00024657,2]
[424755363,1781127049000,-513.67,0.00024657,2]
[424755366,1781127049000,-500.0,0.00024657,2]
[424755362,1781127049000,-537.5,0.00024657,2]
[424755365,1781127049000,-500.0,0.00024657,2]
[424755357,1781127049000,-500.0,0.00024657,2]
[424755378,1781127049000,-212.86,0.000249,2]
[424755382,1781127049000,-500.0,0.00024931,2]
[424755361,1781127049000,-500.0,0.00024657,2]
[424755377,1781127049000,-168.4199,0.000249,2]
[424755379,1781127049000,-212.86,0.000249,2]
[424755380,1781127049000,-212.54,0.000249,2]
[424755375,1781127049000,-474.74,0.000249,2]
[424755374,1781127049000,-150.0,0.00024681,7]
[424755376,1781127049000,-474.74,0.000249,2]
[424755373,1781127049000,-216.35887332,0.00024681,2]
[424755371,1781127049000,-500.0,0.00024657,2]
[424755370,1781127049000,-3348.17,0.00024657,2]
[424755372,1781127049000,-380.0,0.00024658,2]
[424755369,1781127049000,-500.0,0.00024657,2]
[424755368,1781127049000,-529.31,0.00024657,2]
[424755439,1781127050000,-151.0,0.00019209,2]
[424755434,1781127050000,-1393.27389609,0.00025444,2]
[424755435,1781127050000,-837.82014782,0.00025444,2]
[424755436,1781127050000,-2396.45929065,0.00016882,2]
[424755438,1781127050000,-2790.90343,0.00017592,2]
[424755432,1781127050000,-151.639,0.00025444,2]
[424755446,1781127050000,-500.0,0.00025479,2]
[424755444,1781127050000,-900.0,0.00025469,3]
[424755441,1781127050000,-203.232143,0.000212,2]
[424755447,1781127050000,-500.0,0.00025479,2]
[424755443,1781127050000,-500.0,0.00025444,9]
[424755442,1781127050000,-5234.33692238,0.00025444,2]
[424755445,1781127050000,-500.0,0.00025479,2]
[424755430,1781127050000,-151.0,0.00025444,2]
[424755437,1781127050000,-394.44413935,0.00016882,2]
[424755433,1781127050000,-2534.56903371,0.00025444,2]
[424755417,1781127050000,-500.0,0.00025205,2]
[424755429,1781127050000,-151.0,0.00025444,2]
[424755448,1781127050000,-537.5,0.00025479,2]
[424755414,1781127050000,-537.5,0.00025205,2]
[424755415,1781127050000,-513.67,0.00025205,2]
[424755419,1781127050000,-500.0,0.00025205,2]
[424755422,1781127050000,-3348.17,0.00025205,2]
[424755416,1781127050000,-500.0,0.00025205,2]
[424755421,1781127050000,-500.0,0.00025205,2]
[424755418,1781127050000,-500.0,0.00025205,2]
[424755420,1781127050000,-529.31,0.00025205,2]
[424755423,1781127050000,-268.586266,0.00025342,2]
[424755424,1781127050000,-563838.8256,0.00025444,2]
[424755426,1781127050000,-151.0,0.00025444,2]
[424755425,1781127050000,-151.0,0.00025444,2]
[424755427,1781127050000,-151.0,0.00025444,2]
[424755428,1781127050000,-151.0,0.00025444,2]
[424755431,1781127050000,-281.606,0.00025444,2]
[424755452,1781127050000,-500.0,0.00025479,2]
[424755440,1781127050000,-151.0,0.0002,2]
[424755449,1781127050000,-513.67,0.00025479,2]
[424755469,1781127050000,-500.0,0.00025753,2]
[424755471,1781127050000,-500.0,0.00025753,2]
[424755468,1781127050000,-513.67,0.00025753,2]
[424755475,1781127050000,-3348.17,0.00025753,2]
[424755476,1781127050000,-196.0,0.00025775,7]
[424755477,1781127050000,-881.59,0.000259,14]
[424755478,1781127050000,-307.229484,0.00025915,14]
[424755479,1781127050000,-534.65352843,0.00026,2]
[424755481,1781127050000,-5546.7592196,0.00026,10]
[424755480,1781127050000,-19900.0,0.00026,2]
[424755482,1781127050000,-2790.90343,0.00018303,2]
[424755483,1781127050000,-2790.90343,0.00019014,2]
[424755484,1781127050000,-1416.0,0.00020382,2]
[424755485,1781127050000,-950.08550145,0.00026,10]
[424755450,1781127050000,-500.0,0.00025479,2]
[424755472,1781127050000,-500.0,0.00025753,2]
[424755470,1781127050000,-500.0,0.00025753,2]
[424755474,1781127050000,-267.40164645,0.00025753,2]
[424755467,1781127050000,-537.5,0.00025753,2]
[424755451,1781127050000,-500.0,0.00025479,2]
[424755453,1781127050000,-500.0,0.00025479,2]
[424755473,1781127050000,-529.31,0.00025753,2]
[424755455,1781127050000,-500.0,0.00025479,2]
[424755458,1781127050000,-371.121401,0.0002548,14]
[424755459,1781127050000,-333.922415,0.0002548,14]
[424755454,1781127050000,-529.31,0.00025479,2]
[424755460,1781127050000,-1000.0,0.000255,2]
[424755456,1781127050000,-3348.17,0.00025479,2]
[424755461,1781127050000,-245.94,0.000255,3]
[424755457,1781127050000,-5824.65067584,0.00025479,2]
[424755465,1781127050000,-308.14461567,0.00025753,2]
[424755462,1781127050000,-1008.5730314,0.00025644,2]
[424755466,1781127050000,-500.0,0.00025753,2]
[424755464,1781127050000,-500.0,0.00025753,2]
[424755463,1781127050000,-796.83151724,0.00025644,2]
[424755486,1781127129000,-189.04930382,0.00015475,2]
[424755517,1781128231000,-679.45363298,0.00014412,2]
[424755515,1781128231000,-4067.6598463,0.00014412,2]
[424755523,1781128231000,-252.88652072,0.00014412,2]
[424755533,1781128231000,-231.62575112,0.00014848,2]
[424755531,1781128231000,-68.37424888,0.00014848,2]
[424755535,1781128231000,-300.0,0.00014848,2]
[424755537,1781128231000,-300.0,0.00014848,2]
[424755538,1781128231000,-300.0,0.00014848,2]
[424755527,1781128231000,-300.0,0.00014847,2]
[424755540,1781128231000,-300.0,0.00014848,2]
[424755542,1781128231000,-300.0,0.00014848,2]
[424755529,1781128231000,-300.0,0.00014847,2]
[424755544,1781128231000,-300.0,0.00014848,2]
[424755554,1781128231000,-300.0,0.00014848,2]
[424755561,1781128231000,-500.0,0.00015599,2]
[424755560,1781128231000,-300.0,0.00014848,2]
[424755556,1781128231000,-300.0,0.00014848,2]
[424755558,1781128231000,-300.0,0.00014848,2]
[424755549,1781128231000,-300.0,0.00014848,2]
[424755551,1781128231000,-300.0,0.00014848,2]
[424755547,1781128231000,-300.0,0.00014848,2]
[424755563,1781128231000,-500.0,0.00015599,2]
[424755552,1781128231000,-300.0,0.00014848,2]
[424755525,1781128231000,-500.0,0.00014558,2]
[424755566,1781128232000,-500.0,0.00015599,2]
[424755568,1781128232000,-450.35036914,0.00015599,2]
[424755573,1781128232000,-262.12489296,0.00015947,2]
[424755574,1781128232000,-213.13317278,0.00015947,2]
[424755572,1781128232000,-600.0,0.00015749,2]
[424755570,1781128232000,-336.31364085,0.00015599,2]
[424755628,1781128238000,-689.51195106,0.000202,2]
[424755612,1781128238000,-268.586266,0.00017167,2]
[424755615,1781128238000,-221.729,0.00017324,2]
[424755604,1781128238000,-161.359586,0.00016321,2]
[424755610,1781128238000,-500.0,0.00016712,2]
[424755611,1781128238000,-500.0,0.00016986,2]
[424755607,1781128238000,-448.96807405,0.00016321,2]
[424755614,1781128238000,-720.0,0.00017324,2]
[424755617,1781128238000,-1000.0,0.00017944,2]
[424755627,1781128238000,-300.0,0.0002,5]
[424755621,1781128238000,-689.51195106,0.000196,2]
[424755629,1781128238000,-689.51195106,0.000204,2]
[424755618,1781128238000,-592.988845,0.00018985,2]
[424755619,1781128238000,-864.0,0.00019056,2]
[424755620,1781128238000,-768.91038747,0.00019591,2]
[424755622,1781128238000,-592.988845,0.00019784,2]
[424755626,1781128238000,-689.51195106,0.0002,2]
[424755613,1781128238000,-625.451202,0.00017258,2]
[424755623,1781128238000,-689.51195106,0.000198,2]
[424755625,1781128238000,-262.45,0.00019917,2]
[424755631,1781128238000,-1000.0,0.00020962,2]
[424755616,1781128238000,-300.0,0.00017789,2]
[424755609,1781128238000,-500.0,0.00016438,2]
[424755599,1781128238000,-324.71662879,0.00016261,2]
[424755606,1781128238000,-353.20257248,0.00016321,2]
[424755630,1781128238000,-592.988845,0.00020583,2]
[424755583,1781128238000,-41.97715158,0.00015947,2]
[424755584,1781128238000,-231.30956911,0.00015947,2]
[424755585,1781128238000,-224.48403702,0.00015947,2]
[424755586,1781128238000,-172.86200586,0.00015947,2]
[424755587,1781128238000,-213.17238223,0.00015947,2]
[424755588,1781128238000,-162.35831439,0.00015947,2]
[424755589,1781128238000,-255.25278738,0.00015947,2]
[424755591,1781128238000,-420.0,0.00016252,2]
[424755602,1781128238000,-156.070155,0.00016261,2]
[424755608,1781128238000,-303.57214019,0.00016438,2]
[424755601,1781128238000,-191.07503041,0.00016261,2]
[424755593,1781128238000,-278.31978922,0.00016261,2]
[424755594,1781128238000,-510.22064873,0.00016261,2]
[424755592,1781128238000,-524.24978592,0.00016261,2]
[424755595,1781128238000,-190.91592028,0.00016261,2]
[424755598,1781128238000,-416.68189809,0.00016261,2]
[424755596,1781128238000,-159.75617306,0.00016261,2]
[424755597,1781128238000,-386.57077827,0.00016261,2]
[424755600,1781128238000,-510.50557475,0.00016261,2]
[424755603,1781128238000,-159.92806143,0.00016321,2]
[424755605,1781128238000,-590.86011195,0.00016321,2]
[424755590,1781128238000,-295.43005598,0.00016006,2]
[424755636,1781128238000,-500.0,0.00021433,2]
[424755624,1781128238000,-2912.32533792,0.00019817,2]
[424755634,1781128238000,-413.16219711,0.00021433,2]
[424755660,1781128238000,-500.0,0.00021917,2]
[424755658,1781128238000,-98844.8734897,0.00021817,2]
[424755659,1781128238000,-440.0,0.00021917,2]
[424755664,1781128238000,-500.0,0.00021917,2]
[424755673,1781128238000,-500.0,0.00022191,2]
[424755668,1781128238000,-500.0,0.00021917,2]
[424755669,1781128238000,-500.0,0.00021917,2]
[424755670,1781128238000,-1255.57,0.00021917,2]
[424755666,1781128238000,-500.0,0.00021917,2]
[424755675,1781128238000,-500.0,0.00022191,2]
[424755656,1781128238000,-408.9907034,0.00021814,2]
[424755676,1781128238000,-500.0,0.00022191,2]
[424755674,1781128238000,-500.0,0.00022191,2]
[424755667,1781128238000,-500.0,0.00021917,2]
[424755671,1781128238000,-500.0,0.00021917,2]
[424755672,1781128238000,-592.988845,0.00022181,2]
[424755678,1781128238000,-500.0,0.00022191,2]
[424755677,1781128238000,-500.0,0.00022191,2]
[424755681,1781128238000,-500.0,0.00022191,2]
[424755682,1781128238000,-1255.57,0.00022191,2]
[424755679,1781128238000,-500.0,0.00022191,2]
[424755683,1781128238000,-500.0,0.00022191,2]
[424755665,1781128238000,-500.0,0.00021917,2]
[424755657,1781128238000,-903.4911725,0.00021814,2]
[424755642,1781128238000,-500.0,0.00021433,2]
[424755654,1781128238000,-140570.71544484,0.00021814,2]
[424755661,1781128238000,-500.0,0.00021917,2]
[424755632,1781128238000,-592.988845,0.00021382,2]
[424755641,1781128238000,-500.0,0.00021433,2]
[424755637,1781128238000,-500.0,0.00021433,2]
[424755635,1781128238000,-500.0,0.00021433,2]
[424755680,1781128238000,-500.0,0.00022191,2]
[424755639,1781128238000,-500.0,0.00021433,2]
[424755633,1781128238000,-500.0,0.00021433,2]
[424755638,1781128238000,-500.0,0.00021433,2]
[424755644,1781128238000,-500.0,0.00021433,2]
[424755643,1781128238000,-500.0,0.00021433,2]
[424755640,1781128238000,-500.0,0.00021433,2]
[424755645,1781128238000,-500.0,0.00021433,2]
[424755646,1781128238000,-500.0,0.00021433,2]
[424755655,1781128238000,-494377.26639926,0.00021814,2]
[424755662,1781128238000,-500.0,0.00021917,2]
[424755652,1781128238000,-1416.0,0.00021435,2]
[424755653,1781128238000,-1599.89208531,0.00021812,2]
[424755663,1781128238000,-500.0,0.00021917,2]
[424755647,1781128238000,-500.0,0.00021433,2]
[424755650,1781128238000,-489.23531244,0.00021433,2]
[424755651,1781128238000,-1838.0,0.00021435,2]
[424755648,1781128238000,-500.0,0.00021433,2]
[424755649,1781128238000,-500.0,0.00021433,2]
[424755722,1781128239000,-1000.0,0.00023058,10]
[424755721,1781128239000,-500.0,0.00023013,2]
[424755720,1781128239000,-1255.57,0.00023013,2]
[424755726,1781128239000,-500.0,0.00023287,2]
[424755724,1781128239000,-408.99070336,0.00023225,2]
[424755715,1781128239000,-558.31626654,0.00023013,2]
[424755727,1781128239000,-500.0,0.00023287,2]
[424755719,1781128239000,-500.0,0.00023013,2]
[424755717,1781128239000,-500.0,0.00023013,2]
[424755718,1781128239000,-500.0,0.00023013,2]
[424755729,1781128239000,-500.0,0.00023287,2]
[424755725,1781128239000,-500.0,0.00023287,2]
[424755735,1781128239000,-500.0,0.00023561,2]
[424755741,1781128239000,-500.0,0.00023561,2]
[424755737,1781128239000,-524.7,0.00023561,2]
[424755740,1781128239000,-1255.57,0.00023561,2]
[424755736,1781128239000,-500.0,0.00023561,2]
[424755728,1781128239000,-500.0,0.00023287,2]
[424755738,1781128239000,-500.0,0.00023561,2]
[424755730,1781128239000,-500.0,0.00023287,2]
[424755731,1781128239000,-1255.57,0.00023287,2]